Cogmind - Beta 11.1 @@@ ROGUE MODE // 2022.05.12 @ 18:29:28 Player: Olga Result: Self-destructed Performance ------------- Evolutions (3) 1500 Regions Visited (5) 1000 Robots Destroyed (0) 0 Value Destroyed (0) 0 Prototype IDs (0) 0 Alien Tech Used (0) 0 Bonus (834) 834 TOTAL SCORE: 3334 Bonus ------- Pacifist 834 Cogmind --------- Core Integrity 700/700 Matter 230/300 Energy 100/100 System Corruption 0% Temperature Cool (0) Movement Core (50) Location -7/Lower Caves Parts ------- > --- POWER (1) -------- (None) > --- PROPULSION (5) --- (None) > --- UTILITY (5) ------ Advanced Visual Processing Unit Hacking Suite > --- WEAPON (2) ------- Heavy Flail > --- INVENTORY (5) ---- Cooling System Small Storage Unit Improved Medium Armor Plating Datajack Datajack Peak State ------------ > --- POWER ------------ Light Ion Engine > --- PROPULSION ------- Flight Unit Flight Unit > --- UTILITY ---------- Advanced Visual Processing Unit Shield Generator Hacking Suite > --- WEAPON ----------- Heavy Flail > --- INVENTORY -------- Ion Engine Cooling System Small Storage Unit Datajack Datajack [Rating: 14] Favorites ----------- Power Light Ion Engine Engine Light Ion Engine Propulsion Flight Unit Leg Aluminum Leg Flight Unit Flight Unit Utility Hacking Suite Device Shield Generator Storage Small Storage Unit Processor Advanced Visual Processing Unit Hackware Hacking Suite Weapon Light Assault Rifle Energy Gun Small Laser Ballistic Gun Light Assault Rifle Impact Weapon Heavy Flail Build | -11 -10 -9 -8 -7 -7 ------- Run | Scr Mat Mat Mat Fac Low Slots Evolved 6 | . . 2 2 2 . Power . | . . . . . . Propulsion 3 | . . 2 . 1 . Utility 3 | . . . 2 1 . Weapon . | . . . . . . Parts Attached 10 | . 3 2 4 1 . Power 1 | . 1 . . . . Engine 1 | . 1 . . . . Core . | . . . . . . Reactor . | . . . . . . Propulsion 4 | . 2 2 . . . Treads . | . . . . . . Leg . | . . . . . . Wheel . | . . . . . . Hover . | . . . . . . Flight 4 | . 2 2 . . . Utility 3 | . . . 3 . . Device 1 | . . . 1 . . Storage . | . . . . . . Processor 1 | . . . 1 . . Hackware 1 | . . . 1 . . Protection . | . . . . . . Artifact . | . . . . . . Weapon 2 | . . . 1 1 . Energy Gun . | . . . . . . Energy Cannon . | . . . . . . Ballistic Gun . | . . . . . . Ballistic Cannon . | . . . . . . Launcher . | . . . . . . Special Weapon . | . . . . . . Impact Weapon 2 | . . . 1 1 . Slashing Weapon . | . . . . . . Piercing Weapon . | . . . . . . Special Melee Weapon . | . . . . . . Unidentified Prototypes . | . . . . . . Parts Lost 6 | . . 2 4 . . Power . | . . . . . . Propulsion 4 | . . 1 3 . . Utility 1 | . . . 1 . . Weapon 1 | . . 1 . . . Highest Loss Streak 4 | . . 2 4 . . To Critical Strikes . | . . . . . . Average Slot Usage (%) 53 | . 49 75 54 21 . Engine 6 | . 7 11 7 . . Flight 21 | . 14 42 19 . . Device 2 | . . . 7 . . Processor 2 | . . . 2 7 . Hackware 4 | . . . 8 7 . Energy Gun 5 | . 14 11 . . . Ballistic Gun 6 | . 14 11 4 . . Impact Weapon 3 | . . . 5 5 . Naked Turns . | . . . . . . Heaviest Build 9 | 2 5 5 9 3 . Greatest Support 16 | 3 8 16 12 3 . Greatest Overweight (x) . | . . . . . . Average Overweight (x) . | . . . . . . Largest Inventory Capacity 8 | 8 5 5 5 5 . Average Capacity 5 | 7 5 5 5 5 . Most Carried 7 | 7 5 5 5 5 . Average Carried 4 | 5 4 3 4 4 . Final Capacity 5 | 5 5 5 5 5 5 Final Carried 5 | 5 5 5 5 5 5 Class Distribution -------------------- 82% | Mutant 17% | Sprinter Dominant Class ---------------- Mutant | -10/Materials Sprinter | -9/Materials Mutant | -8/Materials Mutant | -7/Factory Mutant | -7/Lower Caves Resources | -11 -10 -9 -8 -7 -7 ----------- Run | Scr Mat Mat Mat Fac Low Matter Collected 200 | 200 . . . . . Remotely . | . . . . . . Salvage Created . | . . . . . . Parts . | . . . . . . Haulers Intercepted . | . . . . . . Recyclers Shooed . | . . . . . . Parts Field Recycled . | . . . . . . Retrieved Matter . | . . . . . . Parts Self-Destructed . | . . . . . . Prevented . | . . . . . . Kills | -11 -10 -9 -8 -7 -7 ------- Run | Scr Mat Mat Mat Fac Low Combat Hostiles Destroyed . | . . . . . . Classes Destroyed . | . . . . . . Best Kill Streak . | . . . . . . Combat Bots Only . | . . . . . . Max Kills in Single Turn . | . . . . . . Gunslinging . | . . . . . . Exploded . | . . . . . . Melee . | . . . . . . Uniques/NPCs Destroyed . | . . . . . . Combat | -11 -10 -9 -8 -7 -7 -------- Run | Scr Mat Mat Mat Fac Low Damage Taken 473 | . 24 238 211 . . Core 171 | . . 37 134 . . Absorbed by Shields 34 | . . . 34 . . Core Remaining (%) 91 | 100 100 90 75 . . Volleys Fired . | . . . . . . Largest . | . . . . . . Hottest . | . . . . . . Shots Fired . | . . . . . . Gun . | . . . . . . Cannon . | . . . . . . Launcher . | . . . . . . Special . | . . . . . . Kinetic . | . . . . . . Thermal . | . . . . . . Explosive . | . . . . . . Electromagnetic . | . . . . . . Robot Hit Streak . | . . . . . . Robot Miss Streak . | . . . . . . Penetration Max . | . . . . . . Secondary Targets . | . . . . . . Shots Hit Robots . | . . . . . . Core Hits . | . . . . . . Critical Kills . | . . . . . . Critical Parts Destroyed . | . . . . . . Critical Strikes . | . . . . . . Melee Attacks 1 | . . . . 1 . Impact 1 | . . . . 1 . Slashing . | . . . . . . Piercing . | . . . . . . Sneak Attacks . | . . . . . . Combat Hostiles . | . . . . . . Follow-up Attacks . | . . . . . . Damage Inflicted . | . . . . . . Guns . | . . . . . . Cannons . | . . . . . . Explosions . | . . . . . . Melee . | . . . . . . Ramming . | . . . . . . Kinetic . | . . . . . . Thermal . | . . . . . . Explosive . | . . . . . . Electromagnetic . | . . . . . . Impact . | . . . . . . Slashing . | . . . . . . Piercing . | . . . . . . Highest Corruption . | . . . . . . Average Corruption . | . . . . . . Corruption Purged . | . . . . . . Corruption Blocked . | . . . . . . Overload Shots . | . . . . . . Overflow Damage . | . . . . . . Projectiles . | . . . . . . Explosions . | . . . . . . Melee . | . . . . . . Knockbacks . | . . . . . . Impact . | . . . . . . Kinetic . | . . . . . . Secondary . | . . . . . . Self-Inflicted Damage . | . . . . . . Shots . | . . . . . . Rammed . | . . . . . . Targets Rammed . | . . . . . . Kicked . | . . . . . . Crushed . | . . . . . . Highest Temperature 11 | . . 11 . . . Average Temperature 5 | . . 5 . . . Received Heat Transfer 120 | . 12 69 39 . . Siege Activations . | . . . . . . Robots Corrupted . | . . . . . . Combat Hostiles . | . . . . . . Parts Fried . | . . . . . . Impact Corruptions . | . . . . . . Robots Melted . | . . . . . . Combat Hostiles . | . . . . . . Parts Melted . | . . . . . . Heat Transferred . | . . . . . . Parts Sabotaged . | . . . . . . Parts Stolen . | . . . . . . Parts Stripped . | . . . . . . Power Chain Reactions . | . . . . . . Missiles Intercepted . | . . . . . . Alert | -11 -10 -9 -8 -7 -7 ------- Run | Scr Mat Mat Mat Fac Low Peak Influence 116 | . . 75 116 53 . Initial 47 | . . . 42 47 . Average 47 | . . 32 78 51 . Maximum Alert Level . | . . . . . . Low Security (%) 100 | 100 100 100 100 100 . Level 1 . | . . . . . . Level 2 . | . . . . . . Level 3 . | . . . . . . Level 4 . | . . . . . . Level 5 . | . . . . . . High Security . | . . . . . . Max Security . | . . . . . . Squads Dispatched 4 | . . 1 3 . . Investigation . | . . . . . . Extermination . | . . . . . . Reinforcement 4 | . . 1 3 . . Assault . | . . . . . . Garrison . | . . . . . . Intercept . | . . . . . . Searches Triggered . | . . . . . . Construction Impeded . | . . . . . . Haulers Reinforced . | . . . . . . Active Scanning Responses . | . . . . . . Cargo Convoy Interrupts . | . . . . . . Stealth | -11 -10 -9 -8 -7 -7 --------- Run | Scr Mat Mat Mat Fac Low Distress Signals 1 | . . . 1 . . Communications Jammed . | . . . . . . Distress Signals . | . . . . . . Times Spotted 30 | . 1 16 13 . . Peak Tracking Total 15 | . 1 15 10 . . Tactical Retreats 2 | . . 1 1 . . Traps | -11 -10 -9 -8 -7 -7 ------- Run | Scr Mat Mat Mat Fac Low Traps Triggered 1 | . . 1 . . . Indirectly . | . . . . . . Trap Hack Attempts . | . . . . . . Triggered . | . . . . . . Disarmed . | . . . . . . Reprogrammed . | . . . . . . Reused . | . . . . . . Traps Extracted . | . . . . . . Installed . | . . . . . . Triggered . | . . . . . . Machines | -11 -10 -9 -8 -7 -7 ---------- Run | Scr Mat Mat Mat Fac Low Machines Disabled . | . . . . . . Max in Single Turn . | . . . . . . Machines Sabotaged . | . . . . . . Garrisons Compromised . | . . . . . . Overloaded Fab Kills . | . . . . . . Hacking | -11 -10 -9 -8 -7 -7 --------- Run | Scr Mat Mat Mat Fac Low Machines Accessed 3 | . . . 2 1 . Terminals 3 | . . . 2 1 . Fabricators . | . . . . . . Repair Stations . | . . . . . . Recycling Units . | . . . . . . Scanalyzers . | . . . . . . Garrison Access . | . . . . . . Total Hacks 12 | . . . 7 5 . Successful 8 | . . . 5 3 . Failed 4 | . . . 2 2 . Catastrophic 1 | . . . . 1 . Database Lockouts . | . . . . . . Manual 13 | . . . 8 5 . Terminals 12 | . . . 7 5 . Fabricators . | . . . . . . Repair Stations . | . . . . . . Recycling Units . | . . . . . . Scanalyzers . | . . . . . . Garrison Access . | . . . . . . Terminal Hacks 6 | . . . 4 2 . Robot Analysis 3 | . . . 3 . . Level Access Points 1 | . . . 1 . . Terminal Index 1 | . . . . 1 . Zone Layout 1 | . . . . 1 . Fabricator Hacks . | . . . . . . Repair Station Hacks . | . . . . . . Recycling Unit Hacks . | . . . . . . Scanalyzer . | . . . . . . Garrison Access Hacks . | . . . . . . Unauthorized Hacks 2 | . . . 1 1 . Terminals 2 | . . . 1 1 . Botnet 2 | . . . 1 1 . Fabricators . | . . . . . . Repair Stations . | . . . . . . Recycling Units . | . . . . . . Scanalyzers . | . . . . . . Garrison Access . | . . . . . . Data Cores Recovered . | . . . . . . Used . | . . . . . . Hacking Detections 3 | . . . 2 1 . Full Trace Events . | . . . . . . Feedback Events . | . . . . . . Feedback Blocked . | . . . . . . Robot Schematics Acquired . | . . . . . . Robots Built . | . . . . . . Authchips . | . . . . . . Time . | . . . . . . Total Robot Build Rating . | . . . . . . Part Schematics Acquired . | . . . . . . Parts Built . | . . . . . . Authchips . | . . . . . . Time . | . . . . . . Total Part Build Rating . | . . . . . . Parts Repaired . | . . . . . . Time . | . . . . . . Parts Recycled . | . . . . . . Recycled Matter . | . . . . . . Retrieved Matter . | . . . . . . Retrieved Components . | . . . . . . Parts Scanalyzed . | . . . . . . Part Schematics Acquired . | . . . . . . Parts Damaged . | . . . . . . Bothacking | -11 -10 -9 -8 -7 -7 ------------ Run | Scr Mat Mat Mat Fac Low Used RIF Installer . | . . . . . . Robots Hacked . | . . . . . . Non-combat . | . . . . . . Combat . | . . . . . . Robot Hacks Applied . | . . . . . . Relay Couplers Released . | . . . . . . Fabnet Peak Effective % . | . . . . . . Robots Rewired . | . . . . . . Allies Hacked . | . . . . . . Hacks Repelled . | . . . . . . Allies | -11 -10 -9 -8 -7 -7 -------- Run | Scr Mat Mat Mat Fac Low Total Allies . | . . . . . . Largest Group . | . . . . . . Highest-Rated Group . | . . . . . . Highest-Rated Ally . | . . . . . . Total Orders . | . . . . . . Ally Attacks . | . . . . . . Total Damage . | . . . . . . Kills . | . . . . . . Allies Corrupted . | . . . . . . Allies Melted . | . . . . . . Intel | -11 -10 -9 -8 -7 -7 ------- Run | Scr Mat Mat Mat Fac Low Robot Analysis Total 3 | . . . 3 . . Derelict Logs Recovered . | . . . . . . Drone Launches . | . . . . . . Drone Recoveries . | . . . . . . Exploration | -11 -10 -9 -8 -7 -7 ------------- Run | Scr Mat Mat Mat Fac Low Turns Passed 261 | 6 41 70 97 47 . Spaces Moved 581 | 3 80 204 209 85 . Core 130 | 3 25 . 17 85 . Treads . | . . . . . . Legs . | . . . . . . Wheels . | . . . . . . Hover . | . . . . . . Flight 451 | . 55 204 192 . . Fastest Speed 31 | 50 37 31 34 50 . Average Speed 37 | 50 41 31 37 50 . Slowest Speed 50 | 50 50 34 50 50 . Overloaded Moves . | . . . . . . Propulsion Burnouts . | . . . . . . Robots Hopped 7 | . 1 3 3 . . Cave-ins Triggered . | . . . . . . Exploration Rate (%) 13 | 2 23 30 22 4 2 Regions Visited 5 Branch Regions 1 Pre-discovered Areas . | . . . . . . Known Exits Taken 1 | . . . 1 . . Unknown Exits Taken 4 | 1 1 1 . 1 . Scrap Searched . | . . . . . . Spaces Dug 1 | . . . . 1 . Terrain Destroyed 1 | . . . . 1 . Melee 1 | . . . . 1 . Projectile . | . . . . . . AOE . | . . . . . . Terrain Rammed . | . . . . . . Walls Destroyed . | . . . . . . Machines Disabled . | . . . . . . Actions | -11 -10 -9 -8 -7 -7 --------- Run | Scr Mat Mat Mat Fac Low Total 614 | 11 86 206 224 87 . Wait 11 | . . . 11 . . Move 564 | 2 77 198 203 84 . Hop 5 | . 1 2 2 . . Pick Up 7 | . 3 3 . 1 . Fast Attach 6 | . 2 . 4 . . Attach 4 | . 1 2 . 1 . Detach 5 | 4 . . 1 . . Swap . | . . . . . . Drop 11 | 5 2 1 3 . . Fire . | . . . . . . Melee 1 | . . . . 1 . Ram . | . . . . . . Kick . | . . . . . . Crush . | . . . . . . Escape Stasis . | . . . . . . Rewire . | . . . . . . Trap . | . . . . . . Miscellaneous . | . . . . . . Route ------- -11/Scrapyard -10/Materials -9/Materials (discovered 2 exits: *Mat / [*Min]) -8/Materials (discovered 4 exits: *Fac x3 / [*Sto]) -7/Factory -7/Lower Caves History --------- Turn | Location | Event 6 | -11/Scrapyard | Discovered new exit (range 1) 7 | -11/Scrapyard | Entered Materials 44 | -10/Materials | Discovered new exit (range 11) 48 | -10/Materials | Entered another Materials area 48 | -9/Materials | Evolved 2 slots: Propulsion x2 87 | -9/Materials | Discovered new exit (range 9) 114 | -9/Materials | Discovered new exit (range 12) 118 | -9/Materials | Entered another Materials area 118 | -8/Materials | Evolved 2 slots: Utility x2 144 | -8/Materials | Identified exit to Factory 145 | -8/Materials | Discovered new exit (range 12) 215 | -8/Materials | Entered Factory 215 | -7/Factory | Evolved 2 slots: Propulsion x1, Utility x1 238 | -7/Factory | Lost 4 parts (3n1u) 255 | -7/Factory | Discovered new exit (range 15) 262 | -7/Factory | Entered Lower Caves 262 | -7/Lower Caves | Self-destructed Last Messages --------------- reinforcements to area. PARAMETERS=PROPULSION+1,UTILITY+1 LOCATION=FACTORY GOAL=ESCAPE 00224_ Connecting with Terminal... >>Trojan(Botnet) Trojan loaded successfully. Testing... Terminal linked with 0 systems. Awaiting botnet instructions. >>Index(Terminals) Found 26 terminals. Downloaded coordinate data. >>Layout(Zone) Retrieving Zone 7V layout... Downloaded map data. 00243_ Acquired Imp. Medium Armor Plating. 00255_ EXIT=FOUND LOCATION=UNKNOWN GOAL=ESCAPE Map ----- +----------------------------------------------------+ | ????????????????????????????????????????????????? | | ????????????????????????????????????????????????? | | ????????????????????????????????????????????????? | | ????????????????????????????????????????????????? | | ????????????????????????????????????????????????? | | ????????????????????????????????????????????????? | | ????????????????????????????????????????????????? | | ????????????????????????????????????????????????? | | ????????????????????????????????????????????????? | | ????????????????????????????????????????????????? | | ????????????????????????????????????????????????? | | ????????????????????????????????????????????????? | | ????????????????????????????????????????????????? | | ????????????????????????????????????????????????? | | ????????????????????????????????????????????????? | | ????????????????????????????????????????????????? | | ??????????????????????????####??????????????????? | | ?????????????????????????? gA??????????????????? | | ?????????????????????????? g???????????????????? | | ?????????????????????????? g???????????????????? | | ?????????????????????????? g#???????????????????? | | ????????????????????????## ##?#????????????????? | | ????????????????????????# # ##???????????????? | | ????????????????????????# #???????????????? | | ???????????????????????## ?????????????????? | | ???????????????????????# @ #????????????????????? | | ???????????????????????# #????????????????????? | | ?????????????????????? ##????????????????????? | | ????????????????????? ## #?????????????????????? | | ???????????????????? ??# #?????????????????????? | | ???????????????????#???# #?????????????????????? | | ???????????????????????# #?????????????????????? | | ???????????????????????# #?????????????????????? | | ???????????????????????# #?????????????????????? | | ??????????????????????? ?????????????????????? | | ??????????????????????? ?????????????????????? | | ??????????????????????? ?????????????????????? | | ??????????????????????? ##?????????????????????? | | ??????????????????????? #???????????????????????? | | ??????????????????????? ????????????????????????? | | ?????????????????????? ????????????????????????? | | ?????????????????????? ????????????????????????? | | ?????????????????????? ????????????????????????? | | ?????????????????????? ?????????????????????????? | | ????????????????????????????????????????????????? | | ????????????????????????????????????????????????? | | ????????????????????????????????????????????????? | | ????????????????????????????????????????????????? | | ????????????????????????????????????????????????? | | ????????????????????????????????????????????????? | +----------------------------------------------------+ Best States ------------- Heat Dissipation 34 Energy Generation 10 Energy Capacity 125 Matter Stores 300 Matter Capacity 300 Sight Range 20 Terrain Scan Density 10 Evasion (%) 63 Offensive Hacking 10 Item Schematics ----------------- None Robot Schematics ------------------ None Fabricated ------------ Nothing Alien Tech Used ----------------- None Achievements -------------- None Challenges ------------ None Game ------ Seed DecoderSiegeChainsword Manual? 0 Play Time 00:06:37 Cumulative 248.6 hours Start 2022.05.12 @ 18:22:25 End 2022.05.12 @ 18:29:28 Sessions 1 Manual Loads 0 Difficulty Rogue Special Mode None Game No. 343 Rogue 340 Adventurer 0 Explorer 3 Win Type - Total 8 Types 8/0/0/0/0/0/0/0/0 Lore% 71 Gallery% 75 Achievement% 62 Wizard Run 0 Options --------- ASCII 1 Keyboard 1 Movement Vi Keybinds 0 Fullscreen 1 Font 18/SmallcapsGlow Map View 76x50 Tactical HUD 1 Map Filters NONE Filters NONE Steam 1 RUN: ed9f17f6-9bca-4794-aaab-0b1ab32c8e94